[Event "Titled Tuesday Blitz August 15 Early 2023"]
[White "Nakamura, Hikaru"]
[Black "Papasimakopoulos, Alexandros"]
[WhiteFideId "2016192"]
[BlackFideId "4244125"]
[WhiteElo "3239"]
[BlackElo "2692"]
[Result "1/2-1/2"]
[Round "7"]
[TimeControl "180+1"]
[Date "2023.08.15"]
[WhiteClock "0:00:18"]
[BlackClock "0:00:11"]
[Board "29"]

1. Nf3 {[%clk 0:03:00]}  d5 {[%clk 0:02:56]} 2. b3 {[%clk 0:03:01]}  Bf5 {[%clk 0:02:55]} 3. e3 {[%clk 0:03:01]}  e6 {[%clk 0:02:55]} 4. c4 {[%clk 0:03:01]}  Nf6 {[%clk 0:02:54]} 5. Bb2 {[%clk 0:03:01]}  Be7 {[%clk 0:02:55]} 6. Nc3 {[%clk 0:02:58]}  O-O {[%clk 0:02:52]} 7. cxd5 {[%clk 0:02:57]}  exd5 {[%clk 0:02:52]} 8. d4 {[%clk 0:02:58]}  Ne4 {[%clk 0:02:44]} 9. a3 {[%clk 0:02:55]}  c6 {[%clk 0:02:41]} 10. Be2 {[%clk 0:02:48]}  Nxc3 {[%clk 0:02:40]} 11. Bxc3 {[%clk 0:02:48]}  Nd7 {[%clk 0:02:40]} 12. O-O {[%clk 0:02:47]}  Re8 {[%clk 0:02:40]} 13. b4 {[%clk 0:02:44]}  a6 {[%clk 0:02:35]} 14. a4 {[%clk 0:02:37]}  b5 {[%clk 0:02:35]} 15. a5 {[%clk 0:02:35]}  Bd6 {[%clk 0:02:30]} 16. Nd2 {[%clk 0:02:34]}  Qh4 {[%clk 0:02:25]} 17. g3 {[%clk 0:02:31]}  Qh3 {[%clk 0:02:18]} 18. Re1 {[%clk 0:02:22]}  Nf6 {[%clk 0:02:13]} 19. Bf1 {[%clk 0:02:21]}  Qh6 {[%clk 0:02:13]} 20. Bg2 {[%clk 0:02:21]}  Bh3 {[%clk 0:02:06]} 21. Rc1 {[%clk 0:02:20]}  Bxg2 {[%clk 0:02:05]} 22. Kxg2 {[%clk 0:02:21]}  Re6 {[%clk 0:02:04]} 23. Nf1 {[%clk 0:02:16]}  Bf8 {[%clk 0:02:01]} 24. f3 {[%clk 0:02:14]}  Ne8 {[%clk 0:02:00]} 25. Bd2 {[%clk 0:02:12]}  Rc8 {[%clk 0:02:00]} 26. e4 {[%clk 0:02:10]}  Qf6 {[%clk 0:01:52]} 27. e5 {[%clk 0:02:10]}  Qg6 {[%clk 0:01:48]} 28. Bc3 {[%clk 0:02:01]}  Re7 {[%clk 0:01:39]} 29. f4 {[%clk 0:01:55]}  f5 {[%clk 0:01:39]} 30. Ne3 {[%clk 0:01:53]}  Nc7 {[%clk 0:01:38]} 31. g4 {[%clk 0:01:39]}  fxg4 {[%clk 0:01:30]} 32. f5 {[%clk 0:01:37]}  Qg5 {[%clk 0:01:25]} 33. Qxg4 {[%clk 0:01:37]}  Qxg4+ {[%clk 0:01:25]} 34. Nxg4 {[%clk 0:01:38]}  h5 {[%clk 0:01:20]} 35. Ne3 {[%clk 0:01:33]}  Rf7 {[%clk 0:01:18]} 36. h4 {[%clk 0:01:29]}  g6 {[%clk 0:01:13]} 37. fxg6 {[%clk 0:00:56]}  Rg7 {[%clk 0:01:13]} 38. Nf5 {[%clk 0:00:55]}  Rxg6+ {[%clk 0:01:13]} 39. Kh3 {[%clk 0:00:55]}  Ne6 {[%clk 0:01:11]} 40. Bd2 {[%clk 0:00:56]}  Kh7 {[%clk 0:01:09]} 41. Rg1 {[%clk 0:00:34]}  Rc7 {[%clk 0:01:08]} 42. Rg3 {[%clk 0:00:26]}  Rxg3+ {[%clk 0:01:07]} 43. Kxg3 {[%clk 0:00:26]}  Kg6 {[%clk 0:01:07]} 44. Ne3 {[%clk 0:00:22]}  Nxd4 {[%clk 0:01:07]} 45. Nxd5 {[%clk 0:00:23]}  Rd7 {[%clk 0:00:58]} 46. Nf4+ {[%clk 0:00:23]}  Kf5 {[%clk 0:00:59]} 47. Rf1 {[%clk 0:00:24]}  Ke4 {[%clk 0:00:59]} 48. e6 {[%clk 0:00:22]}  Rd8 {[%clk 0:00:57]} 49. Bc3 {[%clk 0:00:15]}  Nf5+ {[%clk 0:00:55]} 50. Kh3 {[%clk 0:00:16]}  Be7 {[%clk 0:00:53]} 51. Ng6 {[%clk 0:00:11]}  Rd3+ {[%clk 0:00:51]} 52. Kh2 {[%clk 0:00:12]}  Rxc3 {[%clk 0:00:47]} 53. Rf4+ {[%clk 0:00:12]}  Kd5 {[%clk 0:00:47]} 54. Rxf5+ {[%clk 0:00:12]}  Kxe6 {[%clk 0:00:47]} 55. Rxh5 {[%clk 0:00:12]}  Bxb4 {[%clk 0:00:45]} 56. Nf4+ {[%clk 0:00:13]}  Kd6 {[%clk 0:00:44]} 57. Rf5 {[%clk 0:00:12]}  Bxa5 {[%clk 0:00:42]} 58. h5 {[%clk 0:00:12]}  Re3 {[%clk 0:00:36]} 59. h6 {[%clk 0:00:13]}  Bc3 {[%clk 0:00:36]} 60. Rf8 {[%clk 0:00:13]}  Be5 {[%clk 0:00:33]} 61. Kg2 {[%clk 0:00:05]}  Bxf4 {[%clk 0:00:33]} 62. Rxf4 {[%clk 0:00:06]}  Re7 {[%clk 0:00:30]} 63. Rg4 {[%clk 0:00:04]}  Rh7 {[%clk 0:00:30]} 64. Rg6+ {[%clk 0:00:04]}  Kd5 {[%clk 0:00:31]} 65. Kf3 {[%clk 0:00:05]}  a5 {[%clk 0:00:31]} 66. Ke3 {[%clk 0:00:06]}  b4 {[%clk 0:00:27]} 67. Kd3 {[%clk 0:00:07]}  Kc5 {[%clk 0:00:25]} 68. Rg5+ {[%clk 0:00:07]}  Kb6 {[%clk 0:00:25]} 69. Rh5 {[%clk 0:00:08]}  a4 {[%clk 0:00:26]} 70. Kc4 {[%clk 0:00:08]}  c5 {[%clk 0:00:26]} 71. Rh2 {[%clk 0:00:07]}  a3 {[%clk 0:00:25]} 72. Kb3 {[%clk 0:00:06]}  Kb5 {[%clk 0:00:19]} 73. Rh5 {[%clk 0:00:07]}  Kb6 {[%clk 0:00:11]} 74. Rh1 {[%clk 0:00:06]}  Kc6 {[%clk 0:00:12]} 75. Rh2 {[%clk 0:00:06]}  Kd5 {[%clk 0:00:12]} 76. Rh5+ {[%clk 0:00:06]}  Kd4 {[%clk 0:00:13]} 77. Rh4+ {[%clk 0:00:07]}  Kd3 {[%clk 0:00:13]} 78. Rh3+ {[%clk 0:00:08]}  Ke4 {[%clk 0:00:14]} 79. Rh5 {[%clk 0:00:07]}  Kd4 {[%clk 0:00:11]} 80. Rh4+ {[%clk 0:00:07]}  Kd3 {[%clk 0:00:11]} 81. Rh3+ {[%clk 0:00:08]}  Ke4 {[%clk 0:00:11]} 82. Rh5 {[%clk 0:00:08]}  c4+ {[%clk 0:00:11]} 83. Kxb4 {[%clk 0:00:08]}  a2 {[%clk 0:00:12]} 84. Ra5 {[%clk 0:00:07]}  Rxh6 {[%clk 0:00:09]} 85. Kxc4 {[%clk 0:00:08]}  a1=Q {[%clk 0:00:08]} 86. Rxa1 {[%clk 0:00:08]}  Rc6+ {[%clk 0:00:08]} 87. Kb5 {[%clk 0:00:08]}  Rc8 {[%clk 0:00:09]} 88. Re1+ {[%clk 0:00:07]}  Kd5 {[%clk 0:00:09]} 89. Kb4 {[%clk 0:00:07]}  Kd4 {[%clk 0:00:09]} 90. Rd1+ {[%clk 0:00:07]}  Ke4 {[%clk 0:00:09]} 91. Rh1 {[%clk 0:00:08]}  Kd4 {[%clk 0:00:10]} 92. Kb3 {[%clk 0:00:08]}  Kd3 {[%clk 0:00:10]} 93. Rh3+ {[%clk 0:00:08]}  Kd4 {[%clk 0:00:10]} 94. Rh7 {[%clk 0:00:09]}  Rd8 {[%clk 0:00:09]} 95. Rh1 {[%clk 0:00:09]}  Rc8 {[%clk 0:00:10]} 96. Re1 {[%clk 0:00:09]}  Kd3 {[%clk 0:00:10]} 97. Rd1+ {[%clk 0:00:10]}  Ke3 {[%clk 0:00:09]} 98. Rd7 {[%clk 0:00:11]}  Ke4 {[%clk 0:00:10]} 99. Rh7 {[%clk 0:00:11]}  Ke3 {[%clk 0:00:10]} 100. Rh4 {[%clk 0:00:11]}  Kf3 {[%clk 0:00:11]} 101. Rh6 {[%clk 0:00:11]}  Ke4 {[%clk 0:00:11]} 102. Rb6 {[%clk 0:00:11]}  Kd3 {[%clk 0:00:11]} 103. Rd6+ {[%clk 0:00:11]}  Ke3 {[%clk 0:00:12]} 104. Rd7 {[%clk 0:00:12]}  Ke4 {[%clk 0:00:12]} 105. Kb4 {[%clk 0:00:13]}  Ke3 {[%clk 0:00:13]} 106. Kb5 {[%clk 0:00:13]}  Ke4 {[%clk 0:00:13]} 107. Kb6 {[%clk 0:00:14]}  Rc1 {[%clk 0:00:13]} 108. Rh7 {[%clk 0:00:14]}  Kd5 {[%clk 0:00:06]} 109. Rh5+ {[%clk 0:00:14]}  Kd4 {[%clk 0:00:06]} 110. Rh6 {[%clk 0:00:15]}  Ke4 {[%clk 0:00:06]} 111. Rh2 {[%clk 0:00:15]}  Ke5 {[%clk 0:00:07]} 112. Rh8 {[%clk 0:00:14]}  Kd5 {[%clk 0:00:07]} 113. Rd8+ {[%clk 0:00:14]}  Ke5 {[%clk 0:00:08]} 114. Re8+ {[%clk 0:00:14]}  Kd6 {[%clk 0:00:08]} 115. Rd8+ {[%clk 0:00:15]}  Ke6 {[%clk 0:00:09]} 116. Rd2 {[%clk 0:00:16]}  Ke5 {[%clk 0:00:09]} 117. Kb5 {[%clk 0:00:16]}  Ke6 {[%clk 0:00:10]} 118. Kb4 {[%clk 0:00:16]}  Ke5 {[%clk 0:00:10]} 119. Kb3 {[%clk 0:00:17]}  Ke4 {[%clk 0:00:11]} 120. Kb2 {[%clk 0:00:17]}  Rc8 {[%clk 0:00:11]} 121. Rd7 {[%clk 0:00:18]}  Ke3 {[%clk 0:00:11]} 122. Kb3 {[%clk 0:00:18]} 1/2-1/2


[Site "https://www.chess.com"]

[Event "Titled Tuesday Blitz August 15 Early 2023"]
[White "gmbenjaminbok"]
[Black "Iskusnyh, Sergei"]
[BlackFideId "4120027"]
[WhiteElo "2939"]
[BlackElo "2644"]
[Result "1-0"]
[Round "7"]
[TimeControl "180+1"]
[Date "2023.08.15"]
[WhiteClock "0:00:12"]
[BlackClock "0:00:15"]
[Board "33"]

1. d4 {[%clk 0:03:00]}  d5 {[%clk 0:02:59]} 2. c4 {[%clk 0:03:00]}  c6 {[%clk 0:02:58]} 3. cxd5 {[%clk 0:03:01]}  cxd5 {[%clk 0:02:58]} 4. Nf3 {[%clk 0:03:01]}  Nf6 {[%clk 0:02:56]} 5. Nc3 {[%clk 0:03:02]}  Nc6 {[%clk 0:02:56]} 6. Bf4 {[%clk 0:03:02]}  a6 {[%clk 0:02:54]} 7. Rc1 {[%clk 0:02:58]}  Bf5 {[%clk 0:02:52]} 8. e3 {[%clk 0:02:58]}  e6 {[%clk 0:02:50]} 9. Qb3 {[%clk 0:02:57]}  Ra7 {[%clk 0:02:33]} 10. Be2 {[%clk 0:02:55]}  Bd6 {[%clk 0:02:31]} 11. Bxd6 {[%clk 0:02:53]}  Qxd6 {[%clk 0:02:30]} 12. O-O {[%clk 0:02:54]}  Nd7 {[%clk 0:02:28]} 13. Na4 {[%clk 0:02:50]}  O-O {[%clk 0:02:23]} 14. Nc5 {[%clk 0:02:48]}  Nxc5 {[%clk 0:02:20]} 15. Rxc5 {[%clk 0:02:49]}  Bg4 {[%clk 0:02:01]} 16. Qb6 {[%clk 0:02:48]}  Bxf3 {[%clk 0:01:57]} 17. Bxf3 {[%clk 0:02:47]}  Qb8 {[%clk 0:01:46]} 18. b4 {[%clk 0:02:03]}  Ra8 {[%clk 0:01:42]} 19. a3 {[%clk 0:01:56]}  Qa7 {[%clk 0:01:35]} 20. Qc7 {[%clk 0:01:56]}  Rac8 {[%clk 0:01:30]} 21. Qf4 {[%clk 0:01:44]}  Qb8 {[%clk 0:01:28]} 22. Qh4 {[%clk 0:01:34]}  Qd6 {[%clk 0:01:26]} 23. Rfc1 {[%clk 0:01:33]}  Ne7 {[%clk 0:01:20]} 24. Be2 {[%clk 0:01:30]}  g6 {[%clk 0:01:13]} 25. Qf6 {[%clk 0:01:26]}  Rc6 {[%clk 0:01:08]} 26. h4 {[%clk 0:01:15]}  h5 {[%clk 0:01:03]} 27. g4 {[%clk 0:01:09]}  hxg4 {[%clk 0:00:59]} 28. Bxg4 {[%clk 0:01:03]}  Qd8 {[%clk 0:00:22]} 29. h5 {[%clk 0:00:52]}  e5 {[%clk 0:00:21]} 30. Qxe5 {[%clk 0:00:30]}  gxh5 {[%clk 0:00:21]} 31. Rxc6 {[%clk 0:00:20]}  bxc6 {[%clk 0:00:18]} 32. Bxh5 {[%clk 0:00:16]}  Kh7 {[%clk 0:00:16]} 33. Kf1 {[%clk 0:00:13]}  Rg8 {[%clk 0:00:16]} 34. Bxf7 {[%clk 0:00:12]}  Rg7 {[%clk 0:00:15]} 35. Qh5# {[%clk 0:00:12]} 1-0


[Site "https://www.chess.com"]

[Event "Titled Tuesday Blitz August 15 Early 2023"]
[White "Arias, Juan Cruz"]
[Black "He, Anthony"]
[WhiteFideId "118540"]
[BlackFideId "2088215"]
[WhiteElo "2640"]
[BlackElo "2898"]
[Result "1-0"]
[Round "7"]
[TimeControl "180+1"]
[Date "2023.08.15"]
[WhiteClock "0:00:16"]
[BlackClock "0:00:26"]
[Board "36"]

1. d4 {[%clk 0:03:00]}  Nf6 {[%clk 0:02:59]} 2. Nf3 {[%clk 0:03:01]}  g6 {[%clk 0:02:59]} 3. Nbd2 {[%clk 0:03:00]}  c5 {[%clk 0:02:58]} 4. dxc5 {[%clk 0:02:55]}  Bg7 {[%clk 0:02:57]} 5. a3 {[%clk 0:02:49]}  Na6 {[%clk 0:02:54]} 6. c4 {[%clk 0:02:34]}  Nxc5 {[%clk 0:02:53]} 7. e3 {[%clk 0:02:27]}  O-O {[%clk 0:02:52]} 8. Ra2 {[%clk 0:02:26]}  a5 {[%clk 0:02:45]} 9. b3 {[%clk 0:02:27]}  Nfe4 {[%clk 0:02:41]} 10. Bb2 {[%clk 0:02:14]}  Nc3 {[%clk 0:02:41]} 11. Qa1 {[%clk 0:02:11]}  Nxa2 {[%clk 0:02:01]} 12. Bxg7 {[%clk 0:02:10]}  Re8 {[%clk 0:01:45]} 13. Bb2 {[%clk 0:01:57]}  d5 {[%clk 0:01:29]} 14. Qxa2 {[%clk 0:01:55]}  Bf5 {[%clk 0:01:29]} 15. Be2 {[%clk 0:01:49]}  Nd3+ {[%clk 0:01:26]} 16. Bxd3 {[%clk 0:01:48]}  Bxd3 {[%clk 0:01:27]} 17. Ne5 {[%clk 0:01:48]}  dxc4 {[%clk 0:01:27]} 18. bxc4 {[%clk 0:01:43]}  f6 {[%clk 0:01:04]} 19. c5+ {[%clk 0:01:32]}  e6 {[%clk 0:01:00]} 20. Ng4 {[%clk 0:01:32]}  Ba6 {[%clk 0:00:50]} 21. Nxf6+ {[%clk 0:01:29]}  Kf7 {[%clk 0:00:51]} 22. Nxe8 {[%clk 0:01:26]}  Qxe8 {[%clk 0:00:47]} 23. Qb3 {[%clk 0:01:18]}  Rd8 {[%clk 0:00:46]} 24. Qc3 {[%clk 0:01:18]}  Qb5 {[%clk 0:00:46]} 25. Kd1 {[%clk 0:00:52]}  Rd3 {[%clk 0:00:41]} 26. Qf6+ {[%clk 0:00:30]}  Ke8 {[%clk 0:00:41]} 27. Qxe6+ {[%clk 0:00:30]}  Kd8 {[%clk 0:00:36]} 28. Qb6+ {[%clk 0:00:29]}  Qxb6 {[%clk 0:00:32]} 29. cxb6 {[%clk 0:00:30]}  Rd6 {[%clk 0:00:32]} 30. Bd4 {[%clk 0:00:30]}  Bd3 {[%clk 0:00:31]} 31. Nf3 {[%clk 0:00:29]}  Be4 {[%clk 0:00:30]} 32. Kd2 {[%clk 0:00:28]}  Rd5 {[%clk 0:00:29]} 33. Rc1 {[%clk 0:00:28]}  Rb5 {[%clk 0:00:30]} 34. Kc3 {[%clk 0:00:20]}  a4 {[%clk 0:00:28]} 35. Nd2 {[%clk 0:00:20]}  Bxg2 {[%clk 0:00:28]} 36. f3 {[%clk 0:00:21]}  Rh5 {[%clk 0:00:27]} 37. Kd3 {[%clk 0:00:20]}  Rxh2 {[%clk 0:00:27]} 38. Rc7 {[%clk 0:00:19]}  Bh3 {[%clk 0:00:26]} 39. Rxb7 {[%clk 0:00:19]}  Bc8 {[%clk 0:00:27]} 40. Rg7 {[%clk 0:00:19]}  Ba6+ {[%clk 0:00:27]} 41. Kc3 {[%clk 0:00:19]}  Rh1 {[%clk 0:00:27]} 42. Ne4 {[%clk 0:00:19]}  Rb1 {[%clk 0:00:27]} 43. Nd6 {[%clk 0:00:17]}  Rb3+ {[%clk 0:00:28]} 44. Kc2 {[%clk 0:00:17]}  Bd3+ {[%clk 0:00:26]} 45. Kd2 {[%clk 0:00:16]} 1-0


[Site "https://www.chess.com"]

[Event "Titled Tuesday Blitz August 15 Early 2023"]
[White "Moskalenko, Alexander"]
[Black "Huschenbeth, Niclas"]
[WhiteFideId "4155351"]
[BlackFideId "24604747"]
[WhiteElo "2892"]
[BlackElo "2639"]
[Result "1/2-1/2"]
[Round "7"]
[TimeControl "180+1"]
[Date "2023.08.15"]
[WhiteClock "0:00:46"]
[BlackClock "0:00:41"]
[Board "37"]

1. c4 {[%clk 0:02:55]}  Nf6 {[%clk 0:02:54]} 2. Nc3 {[%clk 0:02:54]}  e5 {[%clk 0:02:53]} 3. Nf3 {[%clk 0:02:52]}  e4 {[%clk 0:02:53]} 4. Ng5 {[%clk 0:02:52]}  c6 {[%clk 0:02:53]} 5. Ngxe4 {[%clk 0:02:51]}  Nxe4 {[%clk 0:02:54]} 6. Nxe4 {[%clk 0:02:52]}  d5 {[%clk 0:02:54]} 7. cxd5 {[%clk 0:02:53]}  cxd5 {[%clk 0:02:55]} 8. Ng3 {[%clk 0:02:54]}  h5 {[%clk 0:02:56]} 9. e3 {[%clk 0:02:54]}  h4 {[%clk 0:02:54]} 10. Ne2 {[%clk 0:02:55]}  Nc6 {[%clk 0:02:53]} 11. d4 {[%clk 0:02:45]}  Qf6 {[%clk 0:02:51]} 12. Nc3 {[%clk 0:02:43]}  Bd6 {[%clk 0:02:51]} 13. Nxd5 {[%clk 0:02:38]}  Qg6 {[%clk 0:02:51]} 14. h3 {[%clk 0:02:30]}  Bf5 {[%clk 0:02:31]} 15. Bd2 {[%clk 0:02:25]}  O-O-O {[%clk 0:02:18]} 16. Rc1 {[%clk 0:02:22]}  Kb8 {[%clk 0:02:12]} 17. Rxc6 {[%clk 0:02:18]}  bxc6 {[%clk 0:02:07]} 18. Qb3+ {[%clk 0:02:18]}  Ka8 {[%clk 0:02:06]} 19. Qa4 {[%clk 0:01:23]}  cxd5 {[%clk 0:00:53]} 20. Qc6+ {[%clk 0:01:22]}  Kb8 {[%clk 0:00:54]} 21. Ba6 {[%clk 0:01:23]}  Bc8 {[%clk 0:00:41]} 22. Qb5+ {[%clk 0:01:16]}  Ka8 {[%clk 0:00:42]} 23. Qxd5+ {[%clk 0:01:16]}  Kb8 {[%clk 0:00:41]} 24. Qb5+ {[%clk 0:01:17]}  Ka8 {[%clk 0:00:41]} 25. Qc6+ {[%clk 0:01:15]}  Kb8 {[%clk 0:00:41]} 26. Qb5+ {[%clk 0:01:15]}  Ka8 {[%clk 0:00:41]} 27. Qc6+ {[%clk 0:00:46]}  Kb8 {[%clk 0:00:41]} 28. Qb5+ {[%clk 0:00:46]} 1/2-1/2


[Site "https://www.chess.com"]

[Event "Titled Tuesday Blitz August 15 Early 2023"]
[White "Eynullayev, Atilla"]
[Black "Bernadskiy, Vitaliy"]
[WhiteFideId "13413570"]
[BlackFideId "14100371"]
[WhiteElo "2637"]
[BlackElo "2858"]
[Result "1-0"]
[Round "7"]
[TimeControl "180+1"]
[Date "2023.08.15"]
[WhiteClock "0:00:15"]
[BlackClock "0:00:28"]
[Board "38"]

1. d4 {[%clk 0:03:00]}  Nf6 {[%clk 0:02:58]} 2. c4 {[%clk 0:03:01]}  g6 {[%clk 0:02:59]} 3. Nc3 {[%clk 0:03:01]}  d5 {[%clk 0:02:59]} 4. cxd5 {[%clk 0:03:02]}  Nxd5 {[%clk 0:03:00]} 5. e4 {[%clk 0:03:03]}  Nxc3 {[%clk 0:03:01]} 6. bxc3 {[%clk 0:03:04]}  Bg7 {[%clk 0:03:01]} 7. Nf3 {[%clk 0:03:04]}  O-O {[%clk 0:03:00]} 8. Be2 {[%clk 0:03:05]}  c5 {[%clk 0:03:00]} 9. O-O {[%clk 0:03:05]}  Nd7 {[%clk 0:03:00]} 10. Re1 {[%clk 0:03:04]}  Nf6 {[%clk 0:02:59]} 11. Bf1 {[%clk 0:03:01]}  Bg4 {[%clk 0:02:56]} 12. Bb2 {[%clk 0:02:40]}  Qb6 {[%clk 0:02:46]} 13. Rb1 {[%clk 0:02:30]}  Qa5 {[%clk 0:02:46]} 14. h3 {[%clk 0:02:23]}  Bxf3 {[%clk 0:02:40]} 15. Qxf3 {[%clk 0:02:23]}  Qxa2 {[%clk 0:02:41]} 16. e5 {[%clk 0:02:24]}  Nd5 {[%clk 0:02:41]} 17. c4 {[%clk 0:01:38]}  Nb6 {[%clk 0:02:35]} 18. dxc5 {[%clk 0:00:54]}  Nxc4 {[%clk 0:02:34]} 19. Qd5 {[%clk 0:00:50]}  Qa5 {[%clk 0:01:59]} 20. Qxc4 {[%clk 0:00:45]}  e6 {[%clk 0:01:59]} 21. Bd4 {[%clk 0:00:44]}  Qc7 {[%clk 0:01:56]} 22. Qb5 {[%clk 0:00:38]}  Rfd8 {[%clk 0:01:56]} 23. Be3 {[%clk 0:00:35]}  Rab8 {[%clk 0:01:52]} 24. g3 {[%clk 0:00:33]}  Bxe5 {[%clk 0:01:51]} 25. Bg2 {[%clk 0:00:34]}  Rd7 {[%clk 0:01:36]} 26. Kh2 {[%clk 0:00:34]}  h5 {[%clk 0:01:23]} 27. h4 {[%clk 0:00:34]}  Qd8 {[%clk 0:01:22]} 28. Kg1 {[%clk 0:00:33]}  Bc3 {[%clk 0:01:12]} 29. Rec1 {[%clk 0:00:25]}  Be5 {[%clk 0:01:08]} 30. c6 {[%clk 0:00:21]}  bxc6 {[%clk 0:01:07]} 31. Qxc6 {[%clk 0:00:21]}  Rxb1 {[%clk 0:01:02]} 32. Rxb1 {[%clk 0:00:21]}  a5 {[%clk 0:01:01]} 33. Qb5 {[%clk 0:00:16]}  Bc3 {[%clk 0:00:57]} 34. Rc1 {[%clk 0:00:15]}  Rd1+ {[%clk 0:00:54]} 35. Rxd1 {[%clk 0:00:15]}  Qxd1+ {[%clk 0:00:55]} 36. Kh2 {[%clk 0:00:16]}  a4 {[%clk 0:00:55]} 37. Bc5 {[%clk 0:00:16]}  Qb3 {[%clk 0:00:45]} 38. Qe8+ {[%clk 0:00:15]}  Kg7 {[%clk 0:00:42]} 39. Qf8+ {[%clk 0:00:16]}  Kf6 {[%clk 0:00:41]} 40. Be7+ {[%clk 0:00:16]}  Ke5 {[%clk 0:00:40]} 41. Qxf7 {[%clk 0:00:16]}  Kd4 {[%clk 0:00:35]} 42. Qf4+ {[%clk 0:00:14]}  Kd3 {[%clk 0:00:31]} 43. Qe4+ {[%clk 0:00:14]}  Kd2 {[%clk 0:00:29]} 44. Bg5+ {[%clk 0:00:14]}  Kd1 {[%clk 0:00:28]} 45. Bf3# {[%clk 0:00:15]} 1-0


[Site "https://www.chess.com"]

[Event "Titled Tuesday Blitz August 15 Early 2023"]
[White "Kukhmazov, Arsen"]
[Black "Sipila, Vilka"]
[WhiteFideId "24108260"]
[BlackFideId "505455"]
[WhiteElo "2845"]
[BlackElo "2635"]
[Result "1-0"]
[Round "7"]
[TimeControl "180+1"]
[Date "2023.08.15"]
[WhiteClock "0:00:07"]
[BlackClock "0:00:15"]
[Board "39"]

1. d4 {[%clk 0:03:00]}  d5 {[%clk 0:02:45]} 2. Nf3 {[%clk 0:02:57]}  Nf6 {[%clk 0:02:45]} 3. c4 {[%clk 0:02:57]}  dxc4 {[%clk 0:02:45]} 4. e3 {[%clk 0:02:50]}  e6 {[%clk 0:02:45]} 5. Bxc4 {[%clk 0:02:49]}  c5 {[%clk 0:02:45]} 6. O-O {[%clk 0:02:49]}  Nc6 {[%clk 0:02:44]} 7. dxc5 {[%clk 0:02:42]}  Bxc5 {[%clk 0:02:40]} 8. Qxd8+ {[%clk 0:02:41]}  Kxd8 {[%clk 0:02:40]} 9. a3 {[%clk 0:02:42]}  a6 {[%clk 0:02:39]} 10. b4 {[%clk 0:02:41]}  Bd6 {[%clk 0:02:29]} 11. Bb2 {[%clk 0:02:40]}  b5 {[%clk 0:02:26]} 12. Be2 {[%clk 0:02:39]}  Bb7 {[%clk 0:02:27]} 13. Nbd2 {[%clk 0:02:37]}  Ke7 {[%clk 0:02:25]} 14. Nb3 {[%clk 0:02:36]}  Rac8 {[%clk 0:02:23]} 15. Rac1 {[%clk 0:02:36]}  Rc7 {[%clk 0:02:13]} 16. Nc5 {[%clk 0:02:23]}  Rhc8 {[%clk 0:02:10]} 17. Nxb7 {[%clk 0:02:15]}  Rxb7 {[%clk 0:02:10]} 18. Rc2 {[%clk 0:02:04]}  Rbc7 {[%clk 0:02:08]} 19. Rfc1 {[%clk 0:02:04]}  Ne8 {[%clk 0:01:47]} 20. Kf1 {[%clk 0:01:55]}  f6 {[%clk 0:01:45]} 21. Bd3 {[%clk 0:01:54]}  g6 {[%clk 0:01:43]} 22. Be4 {[%clk 0:01:49]}  Nd8 {[%clk 0:01:42]} 23. Rxc7+ {[%clk 0:01:47]}  Rxc7 {[%clk 0:01:43]} 24. Rxc7+ {[%clk 0:01:47]}  Nxc7 {[%clk 0:01:41]} 25. h4 {[%clk 0:01:42]}  e5 {[%clk 0:01:35]} 26. Bc2 {[%clk 0:01:37]}  Nd5 {[%clk 0:01:26]} 27. h5 {[%clk 0:01:35]}  gxh5 {[%clk 0:01:07]} 28. Bxh7 {[%clk 0:01:36]}  Nb6 {[%clk 0:01:07]} 29. Nd2 {[%clk 0:01:24]}  h4 {[%clk 0:00:56]} 30. Ke2 {[%clk 0:01:19]}  Ke6 {[%clk 0:00:53]} 31. Bg8+ {[%clk 0:01:15]}  Kf5 {[%clk 0:00:52]} 32. e4+ {[%clk 0:01:14]}  Kg4 {[%clk 0:00:47]} 33. Nf1 {[%clk 0:01:09]}  Nc6 {[%clk 0:00:33]} 34. Ne3+ {[%clk 0:01:04]}  Kf4 {[%clk 0:00:33]} 35. Kd3 {[%clk 0:01:04]}  h3 {[%clk 0:00:15]} 36. gxh3 {[%clk 0:01:05]}  Kf3 {[%clk 0:00:16]} 37. h4 {[%clk 0:01:05]}  Bf8 {[%clk 0:00:13]} 38. h5 {[%clk 0:01:02]}  Ne7 {[%clk 0:00:07]} 39. Be6 {[%clk 0:00:52]}  Kxf2 {[%clk 0:00:07]} 40. Ng4+ {[%clk 0:00:49]}  Kf3 {[%clk 0:00:07]} 41. Nxf6 {[%clk 0:00:49]}  Kf4 {[%clk 0:00:05]} 42. h6 {[%clk 0:00:39]}  Kg5 {[%clk 0:00:02]} 43. Nh7+ {[%clk 0:00:39]}  Kxh6 {[%clk 0:00:02]} 44. Nxf8 {[%clk 0:00:40]}  Kg7 {[%clk 0:00:03]} 45. Nd7 {[%clk 0:00:39]}  Na4 {[%clk 0:00:03]} 46. Bxe5+ {[%clk 0:00:39]}  Kg6 {[%clk 0:00:02]} 47. Nc5 {[%clk 0:00:37]}  Nc6 {[%clk 0:00:03]} 48. Ba1 {[%clk 0:00:27]}  Nb6 {[%clk 0:00:02]} 49. Bb3 {[%clk 0:00:21]}  a5 {[%clk 0:00:02]} 50. Bc3 {[%clk 0:00:20]}  axb4 {[%clk 0:00:02]} 51. axb4 {[%clk 0:00:20]}  Kg5 {[%clk 0:00:03]} 52. e5 {[%clk 0:00:20]}  Kf5 {[%clk 0:00:03]} 53. Be6+ {[%clk 0:00:17]}  Kf4 {[%clk 0:00:02]} 54. Nd7 {[%clk 0:00:13]}  Nxd7 {[%clk 0:00:02]} 55. Bxd7 {[%clk 0:00:13]}  Nxb4+ {[%clk 0:00:02]} 56. Bxb4 {[%clk 0:00:13]}  Kxe5 {[%clk 0:00:02]} 57. Bxb5 {[%clk 0:00:13]}  Kd5 {[%clk 0:00:03]} 58. Bc4+ {[%clk 0:00:13]}  Ke5 {[%clk 0:00:04]} 59. Bc5 {[%clk 0:00:13]}  Kf4 {[%clk 0:00:05]} 60. Bd4 {[%clk 0:00:13]}  Kf5 {[%clk 0:00:05]} 61. Bd5 {[%clk 0:00:14]}  Kf4 {[%clk 0:00:06]} 62. Be4 {[%clk 0:00:13]}  Kg3 {[%clk 0:00:06]} 63. Be3 {[%clk 0:00:13]}  Kg4 {[%clk 0:00:07]} 64. Kd4 {[%clk 0:00:13]}  Kg3 {[%clk 0:00:08]} 65. Ke5 {[%clk 0:00:14]}  Kg4 {[%clk 0:00:09]} 66. Bf4 {[%clk 0:00:14]}  Kh3 {[%clk 0:00:09]} 67. Bf3 {[%clk 0:00:14]}  Kh4 {[%clk 0:00:09]} 68. Kf5 {[%clk 0:00:13]}  Kh3 {[%clk 0:00:09]} 69. Ke4 {[%clk 0:00:10]}  Kh4 {[%clk 0:00:10]} 70. Ke3 {[%clk 0:00:11]}  Kh3 {[%clk 0:00:11]} 71. Kf2 {[%clk 0:00:12]}  Kh4 {[%clk 0:00:12]} 72. Be2 {[%clk 0:00:12]}  Kh3 {[%clk 0:00:13]} 73. Bg5 {[%clk 0:00:12]}  Kh2 {[%clk 0:00:12]} 74. Bg4 {[%clk 0:00:13]}  Kh1 {[%clk 0:00:13]} 75. Bd8 {[%clk 0:00:11]}  Kh2 {[%clk 0:00:14]} 76. Bc7+ {[%clk 0:00:11]}  Kh1 {[%clk 0:00:15]} 77. Bf3# {[%clk 0:00:07]} 1-0


[Site "https://www.chess.com"]